fUSD/lending_fUSD_20241122
["ID","MTS","AMOUNT","RATE_DAILY","PERIOD"]
[343056657,1732317048319,-200.0,0.00644,120]
[343056658,1732317048329,-150.0,0.00647,120]
[343056659,1732317048338,-500.0,0.00647166,120]
[343056660,1732317048347,-1000.0,0.0066128,120]
[343056661,1732317048357,-5000.0,0.0067,120]
[343056662,1732317048366,-5000.0,0.00685,30]
[343056663,1732317048376,-50021.4430241,0.00697973,120]
[343056664,1732317048386,-340.0,0.006999,60]
[343056665,1732317048395,-1000.0,0.00699999,120]
[343056666,1732317048405,-10000.0,0.007,90]
[343056667,1732317048414,-4998.73649689,0.007,2]
[343056668,1732317048423,-8304.58119537,0.007,120]
[343056669,1732317048433,-151.0,0.007,120]
[343056670,1732317048442,-150.0,0.007,120]
[343056671,1732317048452,-300.0,0.007,120]
[343056672,1732317048462,-500.0,0.00708888,120]
[343056673,1732317048472,-879.62975605,0.00712522,120]
[343056674,1732317048482,-1000.0,0.00719999,120]
[343056675,1732317048492,-200.0,0.00722,120]
[343056676,1732317048501,-161.0,0.00732,120]
[343056677,1732317048510,-1000.0,0.00734999,120]
[343056678,1732317048520,-500.0,0.007387,120]
[343056679,1732317048530,-532.46700001,0.007399,60]
[343056680,1732317048539,-1000.0,0.00749999,120]
[343056681,1732317048548,-15000.0,0.0075,120]
[343056682,1732317048597,-500.0,0.00770324,120]
[343056683,1732317048606,-1590.62,0.0078003,112]
[343056684,1732317048616,-150.11,0.0079,120]
[343056685,1732317048625,-2000.0,0.0079,120]
[343056686,1732317048634,-5000.0,0.0079,120]
[343056687,1732317048644,-885.84274274,0.00795158,120]
[343056688,1732317048653,-2000.0,0.00798,30]
[343056689,1732317048663,-200.0,0.008,120]
[343056690,1732317048673,-10000.0,0.008,120]
[343056691,1732317048682,-151.0,0.008,120]
[343056692,1732317048692,-18000.0,0.008,30]
[343056693,1732317048701,-300.0,0.008,120]
[343056694,1732317048711,-1200.0,0.008,120]
[343056695,1732317048720,-502.20087288,0.00810195,120]
[343056696,1732317048729,-879.62975605,0.00810715,120]
[343056697,1732317048738,-1864.3418,0.0082,113]
[343056698,1732317048747,-200.0,0.00833,120]
[343056699,1732317048757,-1858.2580223,0.0085,120]
[343056700,1732317048766,-203.0,0.008538,120]
[343056701,1732317048776,-2074.35389219,0.008677,4]
[343056702,1732317048785,-19537.6210329,0.0087,120]
[343056703,1732317048797,-462.3789671,0.0087,120]
[343056704,1732317048807,-1000.0,0.00888897,7]
[343056705,1732317048817,-1000.0,0.0089,120]
[343056706,1732317048826,-2562.45034688,0.00897,30]
[343056707,1732317048838,-2437.54965312,0.00897,30]
[343056708,1732317048848,-10000.0,0.009,90]
[343056709,1732317048858,-11338.08060768,0.009,60]
[343056710,1732317048867,-155.0,0.009,120]
[343056711,1732317048877,-10000.0,0.009,90]
[343056712,1732317048886,-1000.0,0.009,120]
[343056713,1732317048896,-150.0,0.009,120]
[343056714,1732317048906,-300.0,0.009,120]
[343056715,1732317048916,-5009.07987036,0.009,120]
[343056716,1732317048925,-1000.0,0.009,60]
[343056717,1732317048935,-879.62975605,0.0090893,120]
[343056718,1732317048948,-2000.0,0.0092,120]
[343056719,1732317048958,-200.0,0.00922,120]
[343056720,1732317048970,-1490.66011279,0.0093,120]
[343056721,1732317049994,-1469.901024,0.00091111,15]
[343056722,1732317050051,-1960.95047305,0.00091111,15]
[343056723,1732317050063,-500.0,0.00091111,15]
[343056724,1732317050088,-737.63582241,0.00091111,15]
[343056725,1732317050098,-829.36948351,0.0093,120]
[343056726,1732317050145,-153.0,0.0008376,120]
[343056727,1732317050154,-153.0,0.0008376,120]
[343056728,1732317050163,-153.0,0.0008376,120]
[343056729,1732317050171,-153.0,0.0008376,120]
[343056730,1732317050181,-153.0,0.0008376,120]
[343056731,1732317050190,-153.0,0.0008376,120]
[343056732,1732317050199,-500.0,0.00093999,120]
[343056733,1732317050266,-153.0,0.0008376,120]
[343056734,1732317050277,-153.0,0.0008376,120]
[343056735,1732317050286,-153.0,0.0008376,120]
[343056736,1732317050295,-153.0,0.0008376,120]
[343056737,1732317050303,-153.0,0.0008376,120]
[343056738,1732317050314,-153.0,0.0008376,120]
[343056739,1732317050324,-153.0,0.0008376,120]
[343056740,1732317050332,-153.0,0.0008376,120]
[343056741,1732317050342,-153.0,0.0008376,120]
[343056742,1732317050351,-595.0165596,0.00092367,15]
[343056743,1732317050364,-4073.47075986,0.00092367,15]
[343056744,1732317050373,-42413.58493296,0.0093,120]
[343056745,1732317097526,-7500.0,0.000598,120]
[343056749,1732317253019,290.0,0.000378,2]
[343056751,1732317309977,154.87,0.00041096,2]
[343056753,1732317819577,-154.87,0.00073059,120]
[343056754,1732317819603,-283.26,0.00083697,4]
[343056755,1732317819629,-283.26,0.00087001,4]
[343056756,1732317819656,-150.0,0.00087592,2]
[343056757,1732317819682,-1866.789,0.00088,90]
[343056758,1732317819707,-1000.0,0.00088102,120]
[343056759,1732317819732,-1200.0,0.00088899,120]
[343056760,1732317819757,-9552.50430281,0.000889,120]
[343056761,1732317819782,-450.0,0.00089989,20]
[343056762,1732317819806,-100000.0,0.0008999,120]
[343056763,1732317819832,-944.24,0.00089996,30]
[343056764,1732317819857,-1332.0,0.00089996,120]
[343056765,1732317819881,-5000.0,0.0009,120]
[343056766,1732317819905,-456.07908388,0.0009,120]
[343056767,1732317819931,-283.26,0.00090305,4]
[343056768,1732317819956,-1000.0,0.00090643,120]
[343056769,1732317820098,-150.99,0.00090643,30]
[343056770,1732317820124,-704.87,0.00090643,20]
[343056771,1732317820149,-999.99,0.00090643,20]
[343056772,1732317820174,-270.25,0.000907,60]
[343056773,1732317820200,-227.6,0.00090919,30]
[343056774,1732317820226,-170.41,0.00090958,120]
[343056775,1732317820251,-5000.0,0.00091,120]
[343056776,1732317820277,-158.987,0.000912,90]
[343056777,1732317820302,-1888.94,0.00091493,30]
[343056778,1732317820328,-150.99,0.00091493,31]
[343056779,1732317820354,-306.53,0.00091493,30]
[343056780,1732317820380,-159.937,0.00091493,120]
[343056781,1732317820405,-200.0,0.00091666,30]
[343056782,1732317820430,-5000.0,0.00092,120]
[343056783,1732317820455,-221.54,0.00092378,120]
[343056784,1732317820483,-150.0,0.00092446,30]
[343056785,1732317820508,-3080.03093271,0.0009279,2]
[343056786,1732317820534,-1655.98,0.000928,90]
[343056787,1732317820558,-541.13,0.00092827,30]
[343056788,1732317820582,-283.26,0.00093608,4]
[343056789,1732317820608,-156.03,0.0009373,120]
[343056790,1732317820632,-639.77,0.00093999,120]
[343056791,1732317820656,-500.0,0.00093999,120]
[343056792,1732317820680,-500.0,0.00093999,120]
[343056793,1732317820705,-500.0,0.00093999,120]
[343056794,1732317820730,-500.0,0.00093999,120]
[343056795,1732317820756,-500.0,0.00093999,120]
[343056796,1732317820782,-500.0,0.00093999,120]
[343056797,1732317820807,-223.82028742,0.00093999,120]
[343056798,1732317820833,-500.0,0.00093999,120]
[343056799,1732317820858,-500.0,0.00093999,120]
[343056800,1732317820884,-500.0,0.00093999,120]
[343056801,1732317820909,-500.0,0.00093999,120]
[343056802,1732317820936,-500.0,0.00093999,120]
[343056803,1732317820961,-500.0,0.00093999,120]
[343056804,1732317820987,-500.0,0.00093999,120]
[343056805,1732317821012,-500.0,0.00093999,120]
[343056806,1732317821038,-543.90533091,0.00093999,120]
[343056807,1732317821064,-500.0,0.00093999,120]
[343056808,1732317821090,-500.0,0.00093999,120]
[343056809,1732317821115,-500.0,0.00093999,120]
[343056810,1732317821138,-500.0,0.00093999,120]
[343056811,1732317821164,-500.0,0.00093999,120]
[343056812,1732317821190,-468.35199485,0.00093999,120]
[343056813,1732317821214,-500.0,0.00093999,120]
[343056814,1732317821238,-500.0,0.00093999,120]
[343056815,1732317821264,-500.0,0.00093999,120]
[343056816,1732317821289,-500.0,0.00093999,20]
[343056817,1732317821314,-500.0,0.00093999,120]
[343056818,1732317821339,-250.0,0.00094064,120]
[343056819,1732317821365,-902.69976339,0.00094439,120]
[343056820,1732317821391,-2500.0,0.00094445,120]
[343056821,1732317821416,-3423.05730676,0.0009445,120]
[343056822,1732317821442,-220.70642278,0.00094462,120]
[343056823,1732317821466,-504.23,0.00094464,120]
[343056824,1732317821492,-311.35,0.00094464,120]
[343056825,1732317821515,-418.10967292,0.00094464,120]
[343056826,1732317821540,-440.45422293,0.00094464,120]
[343056827,1732317821564,-500.0,0.00094464,120]
[343056828,1732317821596,-1104.54551239,0.00094469,120]
[343056829,1732317821620,-200.0,0.00094475,120]
[343056830,1732317821645,-221.26630489,0.00094535,120]
[343056831,1732317821673,-1001.2487,0.00094573,30]
[343056832,1732317821697,-2017.9943,0.00094577,2]
[343056833,1732317821721,-220.70642278,0.00094595,120]
[343056834,1732317821747,-3098.79090787,0.00094657,15]
[343056835,1732317821773,-3423.05730676,0.00094665,120]
[343056836,1732317821798,-1104.54551239,0.00094671,120]
[343056837,1732317821822,-220.70642278,0.00094677,120]
[343056838,1732317821847,-55555.0,0.00094677,120]
[343056839,1732317821874,-3423.05730676,0.00094679,120]
[343056840,1732317821900,-902.69976339,0.0009468,120]
[343056841,1732317821924,-1450.0,0.000947,12]
[343056842,1732317821949,-902.69976339,0.00094703,120]
[343056843,1732317821975,-500.0,0.00094706,120]
[343056844,1732317822000,-500.0,0.00094706,120]
[343056845,1732317822028,-500.0,0.00094706,120]
[343056846,1732317822053,-3423.05730676,0.00094707,120]
[343056847,1732317822082,-578.6494,0.00094708,120]
[343056848,1732317822106,-2683.3948,0.00094708,120]
[343056849,1732317822131,-5000.0,0.00094719,120]
[343056850,1732317822251,-902.69976339,0.00094757,120]
[343056851,1732317822277,-1104.54551239,0.00094773,120]
[343056852,1732317822302,-220.70642278,0.00094781,120]
[343056853,1732317822330,-221.26630489,0.0009479,120]
[343056854,1732317822357,-200.0,0.00094797,120]
[343056855,1732317822383,-500.0,0.00094799,120]
[343056856,1732317822408,-500.0,0.00094799,120]
[343056857,1732317822435,-500.0,0.00094799,120]
[343056858,1732317822461,-500.0,0.00094799,120]
[343056859,1732317822490,-500.0,0.00094799,120]
[343056860,1732317822515,-500.0,0.00094799,120]
[343056861,1732317822542,-500.0,0.00094799,120]
[343056862,1732317822568,-500.0,0.00094799,120]
[343056863,1732317822595,-501.71855878,0.00094799,120]
[343056864,1732317822619,-500.0,0.00094799,120]
[343056865,1732317822644,-198.42788833,0.00094799,120]
[343056866,1732317822671,-351.22712231,0.00094799,120]
[343056867,1732317822696,-191.62598472,0.00094799,120]
[343056868,1732317822725,-500.0,0.00094799,120]
[343056869,1732317822751,-500.0,0.00094799,120]
[343056870,1732317822776,-265.71669763,0.00094799,120]
[343056871,1732317822802,-598.48,0.00094799,120]
[343056872,1732317822827,-500.0,0.00094799,120]
[343056873,1732317822853,-500.0,0.00094799,120]
[343056874,1732317822879,-500.0,0.00094799,120]
[343056875,1732317822904,-500.0,0.00094799,120]
[343056876,1732317822930,-500.0,0.00094799,120]
[343056877,1732317822955,-545.16,0.00094799,120]
[343056878,1732317822980,-500.0,0.00094799,120]
[343056879,1732317823004,-500.0,0.00094799,120]
[343056880,1732317823028,-539.3,0.00094799,120]
[343056881,1732317823053,-500.0,0.00094799,120]
[343056882,1732317823079,-500.0,0.00094799,120]
[343056883,1732317823107,-195.32,0.00094799,120]
[343056884,1732317823132,-500.0,0.00094799,120]
[343056885,1732317823158,-574.77,0.00094799,120]
[343056886,1732317823183,-500.0,0.00094799,120]
[343056887,1732317823209,-500.0,0.00094799,120]
[343056888,1732317823235,-500.0,0.00094799,120]
[343056889,1732317823261,-500.0,0.00094799,120]
[343056890,1732317823285,-500.0,0.00094799,120]
[343056891,1732317823309,-500.0,0.00094799,120]
[343056892,1732317823336,-500.0,0.00094799,120]
[343056893,1732317823361,-500.0,0.00094799,120]
[343056894,1732317823386,-500.0,0.00094799,120]
[343056895,1732317823410,-500.0,0.00094799,120]
[343056896,1732317823435,-361.47758429,0.00094799,120]
[343056897,1732317823458,-150.0,0.00094799,120]
[343056898,1732317823484,-500.0,0.00094799,120]
[343056899,1732317823523,-500.0,0.00094799,120]
[343056900,1732317823550,-500.0,0.00094799,120]
[343056901,1732317823579,-500.0,0.00094799,120]
[343056902,1732317823604,-500.0,0.00094799,120]
[343056903,1732317823628,-500.0,0.00094799,120]
[343056904,1732317823653,-500.0,0.00094799,120]
[343056905,1732317823678,-500.0,0.00094799,120]
[343056906,1732317823703,-500.0,0.00094799,120]
[343056907,1732317823728,-500.0,0.00094799,120]
[343056908,1732317823753,-500.0,0.00094799,120]
[343056909,1732317823780,-500.0,0.00094799,120]
[343056910,1732317823807,-500.0,0.00094799,120]
[343056911,1732317823833,-500.0,0.00094799,120]
[343056912,1732317823860,-500.0,0.00094799,120]
[343056913,1732317823885,-500.0,0.00094799,120]
[343056914,1732317823911,-500.0,0.00094799,120]
[343056915,1732317823936,-500.0,0.00094799,120]
[343056916,1732317823963,-500.0,0.00094799,120]
[343056917,1732317823989,-3423.05730676,0.00094808,120]
[343056918,1732317824016,-200.0,0.00094813,120]
[343056919,1732317824042,-220.70642278,0.00094847,120]
[343056920,1732317824070,-902.69976339,0.00094892,120]
[343056921,1732317824098,-221.26630489,0.00094897,120]
[343056922,1732317824128,-207.07420691,0.00094899,120]
[343056923,1732317824154,-631.8054577,0.00094899,120]
[343056924,1732317824181,-166.57,0.00094899,120]
[343056925,1732317824208,-500.0,0.00094899,120]
[343056926,1732317824236,-500.0,0.00094899,120]
[343056927,1732317824263,-258.34,0.00094899,120]
[343056928,1732317824290,-500.0,0.00094899,120]
[343056929,1732317824318,-500.0,0.00094899,120]
[343056930,1732317824346,-500.0,0.00094899,120]
[343056931,1732317824373,-500.0,0.00094899,120]
[343056932,1732317824400,-616.64270807,0.00094899,120]
[343056933,1732317824426,-500.0,0.00094899,120]
[343056934,1732317824451,-500.0,0.00094899,120]
[343056935,1732317824479,-272.05179818,0.00094899,120]
[343056936,1732317824509,-500.0,0.00094899,120]
[343056937,1732317824535,-500.0,0.00094899,120]
[343056938,1732317824560,-500.0,0.00094899,120]
[343056939,1732317824588,-355.2,0.000949,120]
[343056940,1732317824613,-221.26630489,0.00094913,120]
[343056941,1732317824638,-1104.54551239,0.00094922,120]
[343056942,1732317824665,-9252.56443076,0.00094983,13]
[343056943,1732317824692,-1104.54551239,0.00094986,120]
[343056944,1732317824718,-259.06,0.00094989,120]
[343056945,1732317824745,-422.86,0.00094989,120]
[343056946,1732317824894,-500.0,0.00094989,120]
[343056947,1732317824920,-4710.6605817,0.00094993,120]
[343056948,1732317824945,-221.26630489,0.00094998,120]
[343056949,1732317824970,-531.22595196,0.00094999,120]
[343056950,1732317824998,-158.987,0.00096,90]
[343056951,1732317825025,-500.0,0.00096133,120]
[343056952,1732317825053,-500.0,0.00096133,120]
[343056953,1732317825079,-580.31,0.00096133,120]
[343056954,1732317825104,-500.0,0.00096133,120]
[343056955,1732317825128,-500.0,0.00096133,120]
[343056956,1732317825154,-500.0,0.00096133,120]
[343056957,1732317825179,-500.0,0.00096133,120]
[343056958,1732317825205,-500.0,0.00096133,120]
[343056959,1732317825229,-500.0,0.00096133,120]
[343056960,1732317825255,-500.0,0.00096133,120]
[343056961,1732317825281,-571.88,0.00096133,120]
[343056962,1732317825308,-500.0,0.00096133,120]
[343056963,1732317825336,-500.0,0.00096133,120]
[343056964,1732317825363,-500.0,0.00096133,120]
[343056965,1732317825389,-352.69613423,0.00096133,120]
[343056966,1732317825414,-150.0,0.000965,2]
[343056967,1732317825439,-283.26,0.00096912,4]
[343056968,1732317825468,-159.938,0.00097662,120]
[343056969,1732317825496,-200.00000001,0.000989,120]
[343056970,1732317825523,-300.0,0.00099,120]
[343056971,1732317825548,-1000.0,0.00099115,120]
[343056972,1732317825573,-200.0,0.00099999,40]
[343056973,1732317825599,-70952.39477618,0.001,120]
[343056974,1732317825625,-300.0,0.001,120]
[343056975,1732317825749,14897.0,0.00073059,120]
[343056976,1732317839157,500.0,0.00096133,120]
[343056979,1732317849311,10000.0,0.0009347,120]
[343056980,1732317891425,103156.08163089,0.00098,120]
[343056981,1732317909199,273.82887151,0.00045,2]
[343056982,1732317909232,56689.26846472,0.0001,2]
[343056983,1732317944662,1039.40884529,0.00052633,90]
[343056984,1732317952057,4999.99999901,9.99e-05,2]
[343056985,1732317965967,400.0,0.00052633,120]
[343056987,1732317977692,153.7,0.00041096,2]
[343056991,1732317998839,1235499.95417698,0.00052633,30]
[343056992,1732318006976,29954.48608694,0.0004,30]
[343056994,1732318023475,150.0,0.00052442,7]
[343056995,1732318023515,150.0,0.00052511,7]
[343056996,1732318023624,150.0,0.00052447,7]
[343056997,1732318023671,150.0,0.00052377,7]
[343056998,1732318023807,150.0,0.00052468,7]
[343056999,1732318023861,150.0,0.00052466,7]
[343057000,1732318023917,150.0,0.00052554,7]
[343057001,1732318023968,150.0,0.00052607,7]
[343057002,1732318024021,185.47873475,0.00052369,7]
[343057003,1732318024082,150.0,0.0005251,7]
[343057004,1732318046126,-159.83795838,0.0005991,120]
[343057005,1732318047520,2540.63083996,0.00052633,120]
[343057006,1732318050106,-242.52417495,0.0005991,120]
[343057007,1732318050127,-36667.01347984,0.0006001,2]
[343057008,1732318050663,643.56,0.00052623,30]
[343057009,1732318051126,-6264.07726023,0.0006001,2]
[343057010,1732318053795,438.38576273,0.00054,2]
[343057011,1732318054045,150.0,0.00052621,7]
[343057012,1732318054339,150.0,0.00052565,7]
[343057013,1732318054395,150.0,0.00052619,7]
[343057014,1732318054445,150.0,0.00052374,7]
[343057015,1732318054532,150.0,0.00052456,7]
[343057016,1732318054598,150.0,0.00052603,7]
[343057017,1732318054646,150.0,0.00052458,7]
[343057018,1732318054748,150.0,0.00052509,7]
[343057019,1732318054804,150.0,0.00052394,7]
[343057020,1732318054857,150.0,0.00052402,7]
[343057021,1732318054915,150.0,0.00052472,7]
[343057022,1732318055047,150.0,0.0005261,7]
[343057023,1732318055097,150.0,0.00052613,7]
[343057024,1732318055145,150.0,0.0005259,7]
[343057025,1732318055241,150.0,0.00052597,7]
[343057026,1732318055270,535.79001879,0.00039,2]
[343057027,1732318055304,150.0,0.00052463,7]
[343057028,1732318055341,150.0,0.00052549,7]
[343057029,1732318055373,300.0,0.00052537,7]
[343057030,1732318061295,150.0,0.00052595,7]
[343057031,1732318061392,150.0,0.00052407,7]
[343057032,1732318061562,150.0,0.00052541,7]
[343057033,1732318061757,150.0,0.0005261,7]
[343057034,1732318061810,150.0,0.00052513,7]
[343057035,1732318061858,150.0,0.0005252,7]
[343057036,1732318062055,150.0,0.00052624,7]
[343057037,1732318062094,150.0,0.00052603,7]
[343057038,1732318062156,150.0,0.00052443,7]
[343057039,1732318062252,150.0,0.00052491,7]
[343057040,1732318062304,150.0,0.00052512,7]
[343057041,1732318062359,150.0,0.00052522,7]
[343057042,1732318062551,150.0,0.00052631,7]
[343057043,1732318062608,150.0,0.00052588,7]
[343057044,1732318062886,226.36785831,0.00052427,7]
[343057045,1732318065252,8789.54223619,0.000535,120]
[343057046,1732318068164,200.0,0.000519,18]
[343057047,1732318068602,-5000000.0,0.00052633,30]
[343057048,1732318069756,-5000000.0,0.00052633,30]
[343057049,1732318069981,150.0,0.00052579,7]
[343057050,1732318070168,300.0,0.0005241,7]
[343057051,1732318070292,500.0,0.00052,18]
[343057052,1732318071691,243.0,0.00051,30]
[343057053,1732318072389,700.0,0.000521,19]
[343057054,1732318074495,1000.0,0.000522,19]
[343057055,1732318076648,1200.0,0.000523,19]
[343057056,1732318076867,150.0,0.00052455,7]
[343057057,1732318076940,150.0,0.00052536,7]
[343057058,1732318077043,150.0,0.00052544,7]
[343057059,1732318077092,150.0,0.00052495,7]
[343057060,1732318077155,150.0,0.00052598,7]
[343057061,1732318077244,300.0,0.00052439,7]
[343057062,1732318078712,200.0,0.000524,19]
[343057065,1732318080818,200.0,0.000525,19]
[343057066,1732318082921,200.0,0.000526,19]
[343057067,1732318083023,1868.77666188,0.00052623,2]
[343057068,1732318084571,150.0,0.00052394,7]
[343057069,1732318084624,150.0,0.00052487,7]
[343057070,1732318084687,150.0,0.0005259,7]
[343057071,1732318084736,150.0,0.00052426,7]
[343057072,1732318084803,150.0,0.00052575,7]
[343057073,1732318084848,300.0,0.00052445,7]
[343057074,1732318085026,200.0,0.000527,19]
[343057075,1732318087126,687.0,0.000528,19]
[343057076,1732318090714,151.0,0.0003,120]
[343057077,1732318091483,-847.0,0.00054795,120]
[343057078,1732318091514,-839.0,0.00054795,120]
[343057079,1732318091546,-898.0,0.00054795,120]
[343057080,1732318091573,-847.0,0.000549,120]
[343057081,1732318091584,-839.0,0.000549,120]
[343057082,1732318091601,-898.0,0.000549,120]
[343057083,1732318091614,-3536.39997782,0.000549,120]
[343057084,1732318091624,-445.60002218,0.00059607,2]
[343057086,1732318107405,21039.0,0.00052107,30]
[343057087,1732318113606,3741.68231123,0.00025,2]
[343057101,1732318125823,520196.63747439,0.00052632,30]
[343057102,1732318130404,629.05250772,0.00052533,28]
[343057103,1732318132708,160499.26250006,0.00052632,7]
[343057104,1732318132987,34686.2709198,0.00052538,2]
[343057105,1732318134287,37226.09280908,0.00052538,15]
[343057110,1732318147289,-5000000.0,0.00052633,30]
[343057111,1732318148269,-5000000.0,0.00052633,30]
[343057112,1732318148985,-5000000.0,0.00052633,30]
[343057113,1732318149129,-3432.139999,0.000575,120]
[343057114,1732318149160,-3460.18084582,0.00059607,2]
[343057115,1732318149184,-150.0,0.00059707,30]
[343057116,1732318149207,-1000.0,0.000598,120]
[343057117,1732318149228,-192.16938839,0.00059847,30]
[343057118,1732318149250,-150.0,0.00059876,30]
[343057119,1732318149270,-35002.62248679,0.0006001,2]
[343057120,1732318153092,-3457.215678,0.0006001,2]
[343057121,1732318154120,-29013.79278,0.0006001,2]
[343057122,1732318159108,-36772.13976502,0.0006001,2]
[343057123,1732318159132,-153.7,0.00060274,120]
[343057124,1732318159154,-6000.0,0.00063,10]
[343057125,1732318159177,-18491.84780553,0.000678,120]
[343057126,1732318159198,-9999.999999,0.00068,120]
[343057127,1732318159220,-155.24921361,0.0006849,120]
[343057128,1732318159244,-155.24921361,0.0006849,120]
[343057129,1732318159268,-155.24921361,0.0006849,120]
[343057130,1732318159426,-155.24921361,0.0006849,120]
[343057131,1732318159451,-155.24921361,0.0006849,120]
[343057132,1732318159474,-155.24921361,0.0006849,120]
[343057133,1732318159496,-155.24921361,0.0006849,120]
[343057134,1732318159519,-155.24921361,0.0006849,120]
[343057135,1732318159542,-155.24921361,0.0006849,120]
[343057136,1732318159563,-155.24921361,0.0006849,120]
[343057137,1732318159586,-155.24921361,0.0006849,120]
[343057138,1732318159615,-155.24921361,0.0006849,120]
[343057139,1732318159638,-155.24921361,0.0006849,120]
[343057140,1732318159660,-155.24921361,0.0006849,120]
[343057141,1732318159683,-155.24921361,0.0006849,120]
[343057142,1732318159705,-155.24921361,0.0006849,120]
[343057143,1732318159726,-155.24921361,0.0006849,120]
[343057144,1732318159747,-155.24921361,0.0006849,120]
[343057145,1732318159770,-155.24921361,0.0006849,120]
[343057146,1732318159793,-155.24,0.0006849,120]
[343057147,1732318159814,-232.87382041,0.0006849,120]
[343057148,1732318159837,-232.87382041,0.0006849,120]
[343057149,1732318159862,-232.87382041,0.0006849,120]
[343057150,1732318159883,-232.87382041,0.0006849,120]
[343057151,1732318159905,-232.87382041,0.0006849,120]
[343057152,1732318159926,-232.87382041,0.0006849,120]
[343057153,1732318159948,-232.87382041,0.0006849,120]
[343057154,1732318159970,-232.87382041,0.0006849,120]
[343057155,1732318159991,-232.87382041,0.0006849,120]
[343057156,1732318160014,-232.87382041,0.0006849,120]
[343057157,1732318160036,-232.87382041,0.0006849,120]
[343057158,1732318160059,-232.87382041,0.0006849,120]
[343057159,1732318160082,-232.87382041,0.0006849,120]
[343057160,1732318160107,-232.87382041,0.0006849,120]
[343057161,1732318160131,-232.87382041,0.0006849,120]
[343057162,1732318160153,-232.87382041,0.0006849,120]
[343057163,1732318160175,-232.87382041,0.0006849,120]
[343057164,1732318160197,-232.87382041,0.0006849,120]
[343057165,1732318160219,-232.87382041,0.0006849,120]
[343057166,1732318160242,-232.87,0.0006849,120]
[343057167,1732318160264,-3842.6923425,0.00069,2]
[343057168,1732318160286,-150.0,0.0007,100]
[343057169,1732318160311,-150.0,0.000705,101]
[343057170,1732318160333,-150.0,0.00071,102]
[343057171,1732318160357,-150.0,0.000715,103]
[343057172,1732318160390,-4461.70135401,0.00076,120]
[343057173,1732318160415,-530.40675252,0.00076995,15]
[343057174,1732318160439,-150.0,0.00077,60]
[343057175,1732318160462,-302.87,0.00077,60]
[343057176,1732318160484,-491.1,0.00077,60]
[343057177,1732318160506,-314.29,0.00077,60]
[343057178,1732318160528,-424.7,0.00077,60]
[343057179,1732318160553,-153.7,0.00079452,120]
[343057180,1732318160575,-150.38,0.0007968,120]
[343057181,1732318160600,-29016.662219,0.0008,120]
[343057182,1732318160622,-10451.89036977,0.0008,2]
[343057183,1732318160645,-167.76,0.00082772,2]
[343057184,1732318160668,-4171.0496,0.00085,120]
[343057188,1732318167155,3560.94625994,0.00052638,120]
[343057189,1732318168696,383.16808032,0.00052533,30]
[343057190,1732318178491,194.24208308,0.00052533,2]
[343057191,1732318181607,618.67710531,0.00052533,2]